fUST/lending_fUST_20240711
["ID","MTS","AMOUNT","RATE_DAILY","PERIOD"]
[331709899,1720675854429,-438.0,0.0003,2]
[331709900,1720675854438,-270.75944258,0.0003,2]
[331709901,1720675854448,-150.5,0.0003007,62]
[331709902,1720675854458,-150.5,0.0003008,62]
[331709903,1720675854467,-150.5,0.0003009,62]
[331709904,1720675854477,-830.69,0.00030136,7]
[331709905,1720675854486,-692.66,0.00030136,7]
[331709906,1720675854496,-1034.31,0.00030136,7]
[331709907,1720675854505,-616.81,0.00030136,7]
[331709908,1720675854515,-566.22,0.00030136,7]
[331709909,1720675854524,-554.18,0.00030136,7]
[331709910,1720675854534,-500.0,0.00030136,7]
[331709911,1720675854543,-520.74,0.00030136,7]
[331709912,1720675854553,-882.82,0.00030136,7]
[331709913,1720675854563,-500.0,0.00030136,7]
[331709914,1720675854572,-1567.07,0.00030136,7]
[331709915,1720675854581,-4468.81,0.00030136,7]
[331709916,1720675854591,-500.0,0.00030136,7]
[331709917,1720675854601,-500.0,0.00030136,7]
[331709918,1720675854610,-843.36,0.00030136,7]
[331709919,1720675854621,-1089.85,0.00030136,7]
[331709920,1720675854631,-631.79,0.00030136,7]
[331709921,1720675854641,-500.0,0.00030136,7]
[331709922,1720675854650,-1347.75,0.00030136,4]
[331709923,1720675854660,-500.0,0.00030136,7]
[331709924,1720675854669,-500.0,0.00030136,7]
[331709925,1720675854679,-2751.95,0.00030136,7]
[331709926,1720675854689,-1505.0,0.00030136,7]
[331709927,1720675854699,-500.0,0.00030136,7]
[331709928,1720675854708,-500.0,0.00030136,7]
[331709929,1720675854718,-500.0,0.00030136,7]
[331709930,1720675854728,-500.0,0.00030136,7]
[331709931,1720675854738,-1337.17,0.00030136,7]
[331709932,1720675854747,-544.16,0.00030136,7]
[331709933,1720675854757,-627.83,0.00030136,7]
[331709934,1720675854766,-500.0,0.00030136,7]
[331709935,1720675854776,-2577.05,0.00030136,7]
[331709936,1720675854786,-513.45,0.00030136,7]
[331709937,1720675854795,-825.42,0.00030136,7]
[331709938,1720675854805,-6376.09,0.00030136,7]
[331709939,1720675854815,-500.0,0.00030136,7]
[331709940,1720675854825,-500.0,0.00030136,7]
[331709941,1720675854835,-562.35,0.00030136,7]
[331709942,1720675854844,-500.0,0.00030136,2]
[331709943,1720675854854,-169.0,0.000304,6]
[331709944,1720675854864,-38822.03712365,0.000304,2]
[331709945,1720675854874,-830.69,0.0003041,7]
[331709946,1720675854883,-692.66,0.0003041,7]
[331709947,1720675854893,-1034.31,0.0003041,7]
[331709948,1720675854903,-616.81,0.0003041,7]
[331709949,1720675854912,-566.22,0.0003041,7]
[331709950,1720675854921,-554.18,0.0003041,7]
[331709951,1720675854930,-500.0,0.0003041,7]
[331709952,1720675854939,-520.74,0.0003041,7]
[331709953,1720675854949,-882.82,0.0003041,7]
[331709954,1720675854960,-471.96438386,0.0003041,7]
[331709955,1720675854969,-1567.07,0.0003041,7]
[331709956,1720675854978,-4468.81,0.0003041,7]
[331709957,1720675854988,-500.0,0.0003041,7]
[331709958,1720675854997,-500.0,0.0003041,7]
[331709959,1720675855007,-843.36,0.0003041,7]
[331709960,1720675855016,-1089.85,0.0003041,7]
[331709961,1720675855026,-631.79,0.0003041,7]
[331709962,1720675855037,-500.0,0.0003041,7]
[331709963,1720675855046,-1347.75,0.0003041,4]
[331709964,1720675855056,-500.0,0.0003041,7]
[331709965,1720675855066,-500.0,0.0003041,7]
[331709966,1720675855076,-2751.95,0.0003041,7]
[331709967,1720675855086,-1505.0,0.0003041,7]
[331709968,1720675855095,-294.92879694,0.0003041,7]
[331709969,1720675855105,-500.0,0.0003041,7]
[331709970,1720675855114,-500.0,0.0003041,7]
[331709971,1720675855125,-500.0,0.0003041,7]
[331709972,1720675855135,-1337.17,0.0003041,7]
[331709973,1720675855144,-544.16,0.0003041,7]
[331709974,1720675855153,-627.83,0.0003041,7]
[331709975,1720675855163,-500.0,0.0003041,7]
[331709976,1720675855172,-2577.05,0.0003041,7]
[331709977,1720675855182,-513.45,0.0003041,7]
[331709978,1720675855191,-825.42,0.0003041,7]
[331709979,1720675855200,-6376.09,0.0003041,7]
[331709980,1720675855210,-500.0,0.0003041,7]
[331709981,1720675855219,-500.0,0.0003041,7]
[331709982,1720675855229,-562.35,0.0003041,7]
[331709983,1720675855238,-500.0,0.0003041,2]
[331709984,1720675855247,-355.002,0.00030438,2]
[331709985,1720675855258,-1406.0,0.00030438,2]
[331709986,1720675855267,-263.203,0.00030438,2]
[331709987,1720675855276,-1747.10967462,0.00030546,2]
[331709988,1720675855286,-830.69,0.00030684,7]
[331709989,1720675855296,-692.66,0.00030684,7]
[331709990,1720675855305,-1034.31,0.00030684,7]
[331709991,1720675855317,-616.81,0.00030684,7]
[331709992,1720675855326,-566.22,0.00030684,7]
[331709993,1720675855335,-554.18,0.00030684,7]
[331709994,1720675855344,-500.0,0.00030684,7]
[331709995,1720675855353,-520.74,0.00030684,7]
[331709996,1720675855363,-882.82,0.00030684,7]
[331709997,1720675855373,-1567.07,0.00030684,7]
[331709998,1720675855383,-4468.81,0.00030684,7]
[331709999,1720675855392,-195.67355835,0.00030684,7]
[331710000,1720675855401,-500.0,0.00030684,7]
[331710001,1720675855410,-843.36,0.00030684,7]
[331710002,1720675855420,-1089.85,0.00030684,7]
[331710003,1720675855429,-631.79,0.00030684,7]
[331710004,1720675855438,-500.0,0.00030684,7]
[331710005,1720675855448,-1347.75,0.00030684,4]
[331710006,1720675855457,-500.0,0.00030684,7]
[331710007,1720675855467,-500.0,0.00030684,7]
[331710008,1720675855476,-2751.95,0.00030684,7]
[331710009,1720675855485,-1505.0,0.00030684,7]
[331710010,1720675855494,-500.0,0.00030684,7]
[331710011,1720675855503,-500.0,0.00030684,7]
[331710012,1720675855512,-599.9261427,0.00030684,7]
[331710013,1720675855522,-1337.17,0.00030684,7]
[331710014,1720675855531,-544.16,0.00030684,7]
[331710015,1720675855540,-627.83,0.00030684,7]
[331710016,1720675855549,-500.0,0.00030684,7]
[331710017,1720675855558,-2577.05,0.00030684,7]
[331710018,1720675855567,-513.45,0.00030684,7]
[331710019,1720675855576,-825.42,0.00030684,7]
[331710020,1720675855585,-6376.09,0.00030684,7]
[331710021,1720675855594,-500.0,0.00030684,7]
[331710022,1720675855603,-562.35,0.00030684,7]
[331710023,1720675855612,-500.0,0.00030684,7]
[331710024,1720675855623,-500.0,0.00030684,2]
[331710025,1720675855632,-153.0,0.0003074,2]
[331710026,1720675855643,-153.0,0.0003074,2]
[331710027,1720675855652,-153.0,0.0003074,2]
[331710028,1720675855661,-153.0,0.0003074,2]
[331710029,1720675855671,-153.0,0.0003074,2]
[331710030,1720675855680,-2125.64766423,0.0003091,4]
[331710031,1720675855690,-160.0,0.00030948,4]
[331710032,1720675855700,-830.69,0.00030958,7]
[331710033,1720675855709,-692.66,0.00030958,7]
[331710034,1720675855719,-1034.31,0.00030958,7]
[331710035,1720675855729,-616.81,0.00030958,7]
[331710036,1720675855740,-566.22,0.00030958,7]
[331710037,1720675855749,-554.18,0.00030958,7]
[331710038,1720675855759,-500.0,0.00030958,7]
[331710039,1720675855768,-520.74,0.00030958,7]
[331710040,1720675855778,-882.82,0.00030958,7]
[331710041,1720675855788,-1567.07,0.00030958,7]
[331710042,1720675855797,-4468.81,0.00030958,7]
[331710043,1720675855807,-500.0,0.00030958,7]
[331710044,1720675855816,-843.36,0.00030958,7]
[331710045,1720675855826,-1089.85,0.00030958,7]
[331710046,1720675855835,-631.79,0.00030958,7]
[331710047,1720675855844,-500.0,0.00030958,7]
[331710048,1720675855854,-1347.75,0.00030958,4]
[331710049,1720675855864,-257.08647543,0.00030958,7]
[331710050,1720675855875,-378.82348152,0.00030958,7]
[331710051,1720675855884,-2751.95,0.00030958,7]
[331710052,1720675855893,-1505.0,0.00030958,7]
[331710053,1720675855904,-500.0,0.00030958,7]
[331710054,1720675855913,-500.0,0.00030958,7]
[331710055,1720675855923,-1337.17,0.00030958,7]
[331710056,1720675855932,-544.16,0.00030958,7]
[331710057,1720675855942,-627.83,0.00030958,7]
[331710058,1720675855953,-500.0,0.00030958,7]
[331710059,1720675855964,-2577.05,0.00030958,7]
[331710060,1720675855975,-513.45,0.00030958,7]
[331710061,1720675855986,-825.42,0.00030958,7]
[331710062,1720675855997,-6376.09,0.00030958,7]
[331710063,1720675856006,-500.0,0.00030958,7]
[331710064,1720675856015,-562.35,0.00030958,7]
[331710065,1720675856025,-500.0,0.00030958,7]
[331710066,1720675856034,-500.0,0.00030958,2]
[331710067,1720675856043,-500.0,0.00031,2]
[331710068,1720675856053,-153.0,0.00031096,2]
[331710069,1720675856062,-153.0,0.00031096,2]
[331710070,1720675856071,-153.0,0.00031096,2]
[331710071,1720675856080,-153.0,0.00031096,2]
[331710072,1720675856089,-153.0,0.00031096,2]
[331710073,1720675856098,-153.0,0.00031096,2]
[331710074,1720675856107,-153.0,0.00031096,2]
[331710075,1720675856117,-153.0,0.00031096,2]
[331710076,1720675856126,-153.0,0.00031096,2]
[331710077,1720675856135,-153.0,0.00031096,2]
[331710078,1720675856144,-153.0,0.00031096,2]
[331710079,1720675856153,-153.0,0.00031096,2]
[331710080,1720675856163,-153.0,0.00031096,2]
[331710081,1720675856171,-153.0,0.00031096,2]
[331710082,1720675856180,-153.0,0.00031096,2]
[331710083,1720675856190,-153.0,0.00031096,2]
[331710084,1720675856199,-153.0,0.00031096,2]
[331710085,1720675856208,-153.0,0.00031096,2]
[331710086,1720675856247,-153.0,0.00031096,2]
[331710087,1720675856257,-153.0,0.00031096,2]
[331710088,1720675856266,-153.0,0.00031096,2]
[331710089,1720675856275,-153.0,0.00031096,2]
[331710090,1720675856284,-153.0,0.00031096,2]
[331710091,1720675856293,-153.0,0.00031096,2]
[331710092,1720675856303,-153.0,0.00031096,2]
[331710093,1720675856314,-153.0,0.00031096,2]
[331710094,1720675856324,-153.0,0.00031096,2]
[331710095,1720675856333,-153.0,0.00031096,2]
[331710096,1720675856342,-153.0,0.00031096,2]
[331710097,1720675856352,-153.0,0.00031096,2]
[331710098,1720675856361,-153.0,0.00031096,2]
[331710099,1720675856370,-153.0,0.00031096,2]
[331710100,1720675856379,-153.0,0.00031096,2]
[331710101,1720675856388,-153.0,0.00031096,2]
[331710102,1720675856400,-153.0,0.00031096,2]
[331710103,1720675856410,-153.0,0.00031096,2]
[331710104,1720675856419,-153.0,0.00031096,2]
[331710105,1720675856428,-153.0,0.00031096,2]
[331710106,1720675856438,-153.0,0.00031096,2]
[331710107,1720675856448,-153.0,0.00031096,2]
[331710108,1720675856457,-153.0,0.00031096,2]
[331710109,1720675856466,-153.0,0.00031096,2]
[331710110,1720675856475,-153.0,0.00031096,2]
[331710111,1720675856484,-153.0,0.00031096,2]
[331710112,1720675856493,-153.0,0.00031096,2]
[331710113,1720675856502,-153.0,0.00031096,2]
[331710114,1720675856512,-153.0,0.00031096,2]
[331710115,1720675856522,-153.0,0.00031096,2]
[331710116,1720675856531,-153.0,0.00031096,2]
[331710117,1720675856540,-153.0,0.00031096,2]
[331710118,1720675856549,-153.0,0.00031096,2]
[331710119,1720675856559,-153.0,0.00031096,2]
[331710120,1720675856568,-153.0,0.00031096,2]
[331710121,1720675856578,-153.0,0.00031096,2]
[331710122,1720675856587,-368.8382053,0.00031096,2]
[331710123,1720675856597,-248.851,0.0003118,2]
[331710124,1720675856606,-151.883,0.0003118,2]
[331710125,1720675856616,-211.742,0.0003118,2]
[331710126,1720675856626,-235.629,0.00031193,2]
[331710127,1720675856635,-150.0,0.00031193,2]
[331710128,1720675856647,-150.379,0.00031193,2]
[331710129,1720675856657,-830.69,0.00031232,7]
[331710130,1720675856667,-692.66,0.00031232,7]
[331710131,1720675856676,-1034.31,0.00031232,7]
[331710132,1720675856686,-616.81,0.00031232,7]
[331710133,1720675856695,-566.22,0.00031232,7]
[331710134,1720675856706,-554.18,0.00031232,7]
[331710135,1720675856716,-500.0,0.00031232,7]
[331710136,1720675856726,-520.74,0.00031232,7]
[331710137,1720675856736,-882.82,0.00031232,7]
[331710138,1720675856746,-1567.07,0.00031232,7]
[331710139,1720675856755,-2325.65096512,0.00031232,7]
[331710140,1720675856820,-500.0,0.00027397,7]
[331710141,1720675856830,-182.989071,0.00027397,7]
[331710142,1720675856840,-182.989071,0.00027397,7]
[331710143,1720675856849,-182.989071,0.00027397,7]
[331710144,1720675856859,-182.989071,0.00027397,7]
[331710145,1720675856872,-182.989071,0.00027397,7]
[331710146,1720675856881,-182.989071,0.00027671,7]
[331710147,1720675856890,-182.989067,0.00027878,7]
[331710148,1720675856901,-1367.18730811,0.00031232,7]
[331710149,1720675856914,-775.97172677,0.00031232,7]
[331710150,1720675856925,-500.0,0.00031232,7]
[331710151,1720675856936,-843.36,0.00031232,7]
[331710152,1720675856946,-1089.85,0.00031232,7]
[331710153,1720675856956,-631.79,0.00031232,7]
[331710154,1720675856965,-500.0,0.00031232,7]
[331710155,1720675856975,-374.42843105,0.00031232,4]
[331710156,1720675857041,-153.0,0.00026932,2]
[331710157,1720675857050,-973.32156895,0.00031232,4]
[331710158,1720675857059,-2534.37827323,0.00031232,7]
[331710159,1720675857070,-217.57172677,0.00031232,7]
[331710160,1720675857080,-1505.0,0.00031232,7]
[331710161,1720675857089,-500.0,0.00031232,7]
[331710162,1720675857099,-500.0,0.00031232,7]
[331710163,1720675857108,-1337.17,0.00031232,7]
[331710164,1720675857121,-544.16,0.00031232,7]
[331710165,1720675857131,-627.83,0.00031232,7]
[331710166,1720675857140,-500.0,0.00031232,7]
[331710167,1720675857150,-2577.05,0.00031232,7]
[331710168,1720675857159,-513.45,0.00031232,7]
[331710169,1720675857169,-825.42,0.00031232,7]
[331710170,1720675857178,-6376.09,0.00031232,7]
[331710171,1720675857188,-500.0,0.00031232,7]
[331710172,1720675857197,-562.35,0.00031232,7]
[331710173,1720675857207,-500.0,0.00031232,7]
[331710174,1720675857217,-500.0,0.00031232,2]
[331710175,1720675857226,-154.59033561,0.00031272,4]
[331710176,1720675857235,-153.0,0.00031425,2]
[331710177,1720675857244,-830.69,0.00031506,7]
[331710178,1720675857254,-692.66,0.00031506,7]
[331710179,1720675857264,-1034.31,0.00031506,7]
[331710180,1720675857273,-616.81,0.00031506,7]
[331710181,1720675857283,-566.22,0.00031506,7]
[331710182,1720675857294,-554.18,0.00031506,7]
[331710183,1720675857305,-500.0,0.00031506,7]
[331710184,1720675857317,-520.74,0.00031506,7]
[331710185,1720675857327,-882.82,0.00031506,7]
[331710186,1720675857337,-140.56811746,0.00031506,7]
[331710188,1720675909693,267.43469,0.00021096,2]
[331710195,1720676564203,162.13294316,0.00019,2]
[331710199,1720676707475,7060.84441531,0.00019,2]
[331710200,1720676770080,3138.06906429,0.00018899,2]
[331710202,1720676794968,950.00727179,0.00018899,2]
[331710203,1720676799196,6094.81493025,0.00018899,2]
[331710205,1720676831031,2136.49086891,0.00018899,2]
[331710206,1720676840134,-154.57491897,0.00021095,2]
[331710207,1720676840155,-254.062955,0.00021096,2]
[331710208,1720676840175,-491.14974063,0.00021917,2]
[331710209,1720676840196,-160.3712617,0.0002243,2]
[331710210,1720676840216,-1159.23553938,0.00022907,2]
[331710211,1720676840236,-3088.66857407,0.00022941,2]
[331710212,1720676840259,-201.03633962,0.00022941,2]
[331710213,1720676840280,-1579.42092311,0.00022942,2]
[331710214,1720676840304,-1434.5963251,0.00022942,2]
[331710215,1720676840454,-300.0,0.00022942,2]
[331710216,1720676840476,-158.29964009,0.00022943,2]
[331710217,1720676840497,-300.0,0.00023029,2]
[331710218,1720676840518,-808.92295504,0.00023063,2]
[331710219,1720676851124,-324.94083817,0.00022907,2]
[331710220,1720676851148,-424.13657557,0.00023063,2]
[331710221,1720676851171,-4630.49614189,0.00023129,2]
[331710223,1720676958235,-155.44549272,0.00022943,2]
[331710224,1720676968425,155.45465387,0.00022943,2]
[331710227,1720677032624,-300.0,0.00023128,2]
[331710228,1720677032634,-300.0,0.00023128,2]
[331710229,1720677032645,-20269.50385811,0.00023129,2]
[331710230,1720677032655,-693.5886557,0.00023163,2]
[331710231,1720677032666,-523.2636489,0.00023446,2]
[331710232,1720677032677,-475.471408,0.00023527,2]
[331710233,1720677032687,-620.02141321,0.00023568,2]
[331710234,1720677032697,-166.666666,0.000237,2]
[331710235,1720677032707,-500.8322191,0.00024138,2]
[331710236,1720677032716,-620.00107066,0.00024746,2]
[331710237,1720677032726,-1078.92708931,0.00025381,2]
[331710238,1720677032735,-420.0,0.00025441,2]
[331710239,1720677032745,-306.0,0.00025479,2]
[331710240,1720677032754,-153.0,0.00025479,2]
[331710241,1720677032763,-153.0,0.00025479,2]
[331710242,1720677032773,-153.0,0.00025479,2]
[331710243,1720677032782,-153.0,0.00025479,2]
[331710244,1720677032793,-153.0,0.00025479,2]
[331710245,1720677032802,-153.0,0.00025479,2]
[331710246,1720677032812,-4510.96853037,0.00025481,3]
[331710312,1720677038822,-5123.91146963,0.00025481,3]
[331710313,1720677038832,-6690.89,0.00025481,3]
[331710314,1720677038844,-6913.92,0.00025481,3]
[331710315,1720677038855,-5761.6,0.00025481,3]
[331710316,1720677038865,-93083.1986851,0.00025491,3]
[331710317,1720677038874,-500.0,0.000255,2]
[331710318,1720677038884,-500.0,0.000255,2]
[331710319,1720677038894,-500.0,0.000255,2]
[331710320,1720677038904,-381.90159549,0.000255,2]
[331710321,1720677038914,-500.67684623,0.000255,2]
[331710322,1720677038924,-263.92232079,0.000255,2]
[331710323,1720677038934,-500.0,0.000255,2]
[331710324,1720677038944,-500.0,0.000255,2]
[331710325,1720677038954,-500.0,0.000255,2]
[331710326,1720677038964,-493.30563102,0.000255,2]
[331710327,1720677038974,-487.75380422,0.000255,2]
[331710328,1720677038984,-8746.17118023,0.00025501,5]
[331710329,1720677038995,-52150.85185038,0.00025501,2]
[331710330,1720677039005,-30000.0,0.00025501,2]
[331710331,1720677039015,-186166.39737,0.00025779,3]
[331710332,1720677039026,-285.1095527,0.00025779,2]
[331710333,1720677039036,-500.0,0.00025779,2]
[331710334,1720677039047,-500.0,0.00025779,2]
[331710335,1720677039057,-500.0,0.00025779,2]
[331710336,1720677039067,-500.0,0.00025779,2]
[331710337,1720677039078,-500.0,0.00025779,2]
[331710338,1720677039088,-203.39004271,0.00025779,2]
[331710339,1720677039103,-500.0,0.00025779,2]
[331710340,1720677039114,-645.17985347,0.00025779,2]
[331710341,1720677039124,-500.0,0.00025779,2]
[331710342,1720677039137,-500.0,0.00025779,2]
[331710343,1720677039148,-500.0,0.00025779,2]
[331710344,1720677039158,-500.0,0.00025779,2]
[331710345,1720677039168,-500.0,0.00025779,2]
[331710346,1720677039178,-206.83503177,0.00025779,2]
[331710347,1720677039188,-500.0,0.00025779,2]
[331710348,1720677039198,-500.0,0.00025779,2]
[331710349,1720677039209,-500.0,0.00025779,2]
[331710350,1720677039219,-500.0,0.00025779,2]
[331710351,1720677039229,-186166.39737,0.0002578,3]
[331710352,1720677039240,-306.0,0.00025781,2]
[331710353,1720677039250,-153.0,0.00025781,2]
[331710354,1720677039259,-153.0,0.00025781,2]
[331710355,1720677039269,-153.0,0.00025781,2]
[331710356,1720677039279,-153.0,0.00025781,2]
[331710357,1720677039289,-153.0,0.00025781,2]
[331710358,1720677039299,-153.0,0.00025781,2]
[331710359,1720677039309,-153.0,0.00025781,2]
[331710360,1720677039319,-153.0,0.00025781,2]
[331710361,1720677039330,-153.0,0.00025781,2]
[331710362,1720677039341,-153.0,0.00025781,2]
[331710363,1720677039353,-153.0,0.00025781,2]
[331710364,1720677039364,-153.0,0.00025781,2]
[331710365,1720677039374,-153.0,0.00025781,2]
[331710366,1720677039383,-153.0,0.00025781,2]
[331710367,1720677039394,-153.0,0.00025781,2]
[331710368,1720677039404,-153.0,0.00025781,2]
[331710369,1720677039414,-179856.50699405,0.000258,3]
[331710371,1720677040941,-14919.30984571,0.000258,3]
[331710372,1720677040952,-153.0,0.00025808,2]
[331710373,1720677040962,-153.0,0.00025808,2]
[331710374,1720677040971,-153.0,0.00025808,2]
[331710375,1720677040980,-153.0,0.00025808,2]
[331710376,1720677040989,-210.73,0.00025859,62]
[331710377,1720677040999,-215.8382053,0.00025863,2]
[331710378,1720677041008,-7458.94652043,0.0002649,2]
[331710379,1720677041018,-88888.0,0.0002689,3]
[331710380,1720677041027,-166.666666,0.00026931,2]
[331710381,1720677041037,-153.0,0.00026986,2]
[331710382,1720677041046,-153.0,0.00026986,2]
[331710383,1720677041056,-153.0,0.00026986,2]
[331710384,1720677041065,-153.0,0.00026986,2]
[331710385,1720677041076,-18962.37896892,0.00027,4]
[331710386,1720677041085,-17563.47814171,0.00027,2]
[331710454,1720677596158,1254.045868,0.00018899,2]
[331710455,1720677616172,2800.00082769,0.00018899,2]
[331710469,1720677783090,1157.3780498,0.00018899,2]
[331710471,1720677850152,1109.65031317,0.00018899,2]
[331710477,1720678025134,-158.29964009,0.00019165,2]
[331710478,1720678025155,-154.55950541,0.00021095,2]
[331710479,1720678025176,-20.4741865,0.00021096,2]
[331710481,1720678149225,491.31326196,0.00018899,2]
[331710482,1720678154120,-391.80627157,0.00021095,2]
[331710483,1720678154146,-235.7431045,0.00021096,2]
[331710484,1720678154168,-196.54650804,0.00022579,2]
[331710486,1720678175840,391.80627157,0.00021095,2]
[331710532,1720678232006,-300.0,0.00023008,2]
[331710535,1720678232015,-8493.78034455,0.00023009,2]
[331710537,1720678232027,-1842.07038121,0.00023009,2]
[331710586,1720678238026,-14564.14927424,0.00023009,2]
[331710588,1720678238036,-166.666666,0.00023363,2]
[331710590,1720678238046,-237.735704,0.00023462,2]
[331710593,1720678238056,-154.55950541,0.00023966,2]
[331710594,1720678238066,-158.29964009,0.00024481,2]
[331710596,1720678238076,-166.666666,0.00024956,2]
[331710598,1720678238086,-158.29964009,0.00025204,2]
[331710601,1720678238098,-154.55950541,0.00025204,2]
[331710602,1720678238108,-12498.96694066,0.00025401,2]
[331710604,1720678238118,-4801.33,0.00025491,3]
[331710606,1720678238127,-69539.49143916,0.00025491,3]
[331710609,1720678238140,-272.90757464,0.00025491,3]
[331710611,1720678238151,-4373.08559011,0.00025501,5]
[331710613,1720678238161,-31601.78257696,0.00025501,2]
[331710689,1720678240682,-1162.44991243,0.00025391,2]
[331710690,1720678240693,-385.85767527,0.00025501,2]
[331710691,1720678240706,-20163.21159815,0.00025501,2]
[331710692,1720678240716,-30000.0,0.00025501,2]
[331710693,1720678240725,-366.69138635,0.00025537,2]
[331710694,1720678240735,-5293.69736034,0.00025751,2]
[331710695,1720678240744,-165.30597825,0.00025789,2]
[331710696,1720678240753,-165.92284789,0.00025789,2]
[331710697,1720678240763,-69812.3990138,0.0002579,3]
[331710698,1720678240772,-14919.30984571,0.000258,3]
[331710699,1720678240782,-150.5,0.00025819,62]
[331710700,1720678240792,-150.5,0.00025829,62]
[331710701,1720678240803,-150.5,0.00025839,62]
[331710702,1720678240813,-12498.96694064,0.00025875,2]
[331710703,1720678240823,-366.69138635,0.00025912,2]
[331710704,1720678240833,-5293.69736034,0.00025947,2]
[331710705,1720678240842,-366.69138635,0.00026134,2]
[331710706,1720678240851,-5293.69736034,0.00026296,2]
[331710707,1720678240860,-12498.96694064,0.00026349,2]
[331710708,1720678240870,-366.69138635,0.00026432,2]
[331710709,1720678240879,-5293.69736034,0.00026472,2]
[331710710,1720678240889,-166.666666,0.00026548,2]
[331710711,1720678240898,-5293.69736034,0.0002666,2]
[331710712,1720678240908,-153.0,0.00026685,2]
[331710713,1720678240918,-153.0,0.00026685,2]
[331710714,1720678240929,-366.69138635,0.00026688,2]
[331710715,1720678240939,-69812.3990138,0.00026748,3]
[331710716,1720678240948,-12498.96694064,0.00026823,2]
[331710717,1720678240959,-155.45465387,0.00026848,2]
[331710718,1720678240968,-199.57668689,0.00026989,2]
[331710719,1720678240979,-492.3730299,0.00026989,2]
[331710720,1720678240989,-500.0,0.00026989,2]
[331710721,1720678241001,-500.0,0.00026989,2]
[331710722,1720678241011,-500.0,0.00026989,2]
[331710723,1720678241022,-294.78452223,0.00026989,2]
[331710724,1720678241032,-500.0,0.00026989,2]
[331710725,1720678241041,-501.62589743,0.00026989,2]
[331710726,1720678241052,-500.0,0.00026989,2]
[331710727,1720678241063,-500.0,0.00026989,2]
[331710728,1720678241072,-500.0,0.00026989,2]
[331710729,1720678241082,-500.0,0.00026989,2]
[331710730,1720678241092,-500.0,0.00026989,2]
[331710731,1720678241104,-500.0,0.00026989,2]
[331710732,1720678241113,-450.0,0.00026989,2]
[331710733,1720678241123,-139624.798028,0.0002699,3]
[331710734,1720678241134,-213107.88687384,0.00027,2]
[331710735,1720678241144,-189.30856144,0.00027,2]
[331710736,1720678241154,-256.217291,0.00027195,2]
[331710737,1720678241163,-12498.96694064,0.00027297,2]
[331710738,1720678241172,-306.44597889,0.00027368,2]
[331710739,1720678241182,-18101.92801074,0.00027397,5]
[331710740,1720678241192,-500.0,0.00027397,2]
[331710741,1720678241201,-301.12860037,0.00027397,7]
[331710742,1720678241210,-500.0,0.00027397,7]
[331710743,1720678241219,-500.0,0.00027397,7]
[331710744,1720678241229,-500.0,0.00027397,7]
[331710745,1720678241239,-515.26768314,0.00027397,7]
[331710746,1720678241248,-500.0,0.00027397,7]
[331710747,1720678241257,-500.0,0.00027397,7]
[331710748,1720678241267,-500.0,0.00027397,7]
[331710749,1720678241276,-632.29556562,0.00027397,7]
[331710750,1720678241285,-500.0,0.00027397,7]
[331710751,1720678241295,-500.0,0.00027397,7]
[331710752,1720678241304,-500.0,0.00027397,7]